fUST/lending_fUST_20241215
["ID","MTS","AMOUNT","RATE_DAILY","PERIOD"]
[345465506,1734275441250,-500.0,0.00030037,2]
[345465508,1734275441259,-500.0,0.00030037,2]
[345465511,1734275441270,-500.0,0.00030037,2]
[345465513,1734275441279,-500.0,0.00030037,2]
[345465514,1734275441289,-500.0,0.00030037,2]
[345465517,1734275441299,-500.0,0.00030037,2]
[345465518,1734275441308,-500.0,0.00030037,2]
[345465521,1734275441317,-500.0,0.00030037,2]
[345465522,1734275441326,-500.0,0.00030037,2]
[345465524,1734275441336,-500.0,0.00030037,2]
[345465526,1734275441345,-500.0,0.00030037,2]
[345465528,1734275441355,-500.0,0.00030037,2]
[345465530,1734275441364,-500.0,0.00030037,2]
[345465533,1734275441374,-500.0,0.00030037,2]
[345465535,1734275441384,-500.0,0.00030037,2]
[345465536,1734275441393,-500.0,0.00030037,2]
[345465539,1734275441403,-500.0,0.00030037,2]
[345465540,1734275441412,-500.0,0.00030037,2]
[345465542,1734275441422,-500.0,0.00030037,2]
[345465545,1734275441431,-500.0,0.00030037,2]
[345465547,1734275441441,-500.0,0.00030037,2]
[345465548,1734275441451,-500.0,0.00030037,2]
[345465550,1734275441462,-500.0,0.00030037,2]
[345465552,1734275441471,-500.0,0.00030037,2]
[345465553,1734275441480,-500.0,0.00030037,2]
[345465555,1734275441490,-500.0,0.00030037,2]
[345465557,1734275441499,-500.0,0.00030037,2]
[345465559,1734275441509,-500.0,0.00030037,2]
[345465561,1734275441519,-500.0,0.00030037,2]
[345465563,1734275441529,-500.0,0.00030037,2]
[345465565,1734275441538,-500.0,0.00030037,2]
[345465567,1734275441548,-500.0,0.00030037,2]
[345465570,1734275441557,-500.0,0.00030037,2]
[345465572,1734275441567,-500.0,0.00030037,2]
[345465573,1734275441576,-500.0,0.00030037,2]
[345465575,1734275441586,-500.0,0.00030037,2]
[345465577,1734275441595,-500.0,0.00030037,2]
[345465580,1734275441612,-500.0,0.00030037,2]
[345465582,1734275441621,-500.0,0.00030037,2]
[345465583,1734275441631,-500.0,0.00030037,2]
[345465584,1734275441640,-500.0,0.00030037,2]
[345465585,1734275441650,-500.0,0.00030037,2]
[345465586,1734275441660,-500.0,0.00030037,2]
[345465587,1734275441669,-500.0,0.00030037,2]
[345465588,1734275441680,-500.0,0.00030037,2]
[345465589,1734275441689,-500.0,0.00030037,2]
[345465590,1734275441699,-500.0,0.00030037,2]
[345465592,1734275441709,-500.0,0.00030037,2]
[345465594,1734275441718,-500.0,0.00030037,2]
[345465596,1734275441728,-500.0,0.00030037,2]
[345465598,1734275441738,-450.0,0.00030037,2]
[345465600,1734275441746,-500.0,0.00030037,2]
[345465602,1734275441755,-500.0,0.00030037,2]
[345465604,1734275441765,-500.0,0.00030037,2]
[345465606,1734275441775,-500.0,0.00030037,2]
[345465608,1734275441784,-433.91544334,0.00030037,2]
[345465610,1734275441793,-500.0,0.00030037,2]
[345465612,1734275441802,-500.0,0.00030037,2]
[345465614,1734275441811,-500.0,0.00030037,2]
[345465616,1734275441821,-500.0,0.00030037,2]
[345465618,1734275441830,-500.0,0.00030037,2]
[345465620,1734275441839,-500.0,0.00030037,2]
[345465622,1734275441849,-500.0,0.00030037,2]
[345465624,1734275441858,-500.0,0.00030037,2]
[345465627,1734275441867,-500.0,0.00030037,2]
[345465629,1734275441877,-500.0,0.00030037,2]
[345465631,1734275441886,-500.0,0.00030037,2]
[345465632,1734275441895,-500.0,0.00030037,2]
[345465634,1734275441904,-500.0,0.00030037,2]
[345465636,1734275441914,-4466.06754813,0.00030038,2]
[345465638,1734275441923,-48228.12568675,0.00030038,2]
[345465640,1734275441932,-151.0,0.00030038,7]
[345465642,1734275441942,-151.0,0.00030038,7]
[345465644,1734275441951,-151.0,0.00030038,7]
[345465646,1734275441963,-522954.34821349,0.00030038,10]
[345465648,1734275441978,-463.60001,0.00030038,10]
[345465651,1734275441997,-2918.89949196,0.00030038,10]
[345465867,1734275443763,-1558.0,0.00030038,10]
[345466154,1734275446726,-151.0,0.00030038,7]
[345466156,1734275446736,-11974.98295,0.00030038,10]
[345468189,1734276020855,10000.0,0.000255,120]
[345468190,1734276028533,10000.0,0.000255,120]
[345468191,1734276034059,10000.0,0.000255,120]
[345468192,1734276042488,158.0,0.000255,120]
[345468201,1734276423322,166.173936,0.00013973,2]
[345468337,1734276632606,-654.66693086,0.00025817,2]
[345468339,1734276632616,-300.0,0.00025999,2]
[345468341,1734276632625,-300.0,0.00025999,2]
[345468343,1734276632635,-1000.0,0.00026,26]
[345468345,1734276632644,-4377.30465655,0.00026,20]
[345468347,1734276632658,-19910.0,0.00026,20]
[345468348,1734276632809,-6930.16813049,0.00026,20]
[345468349,1734276632819,-166.173936,0.00026274,2]
[345468350,1734276632828,-1054.2130603,0.000264,2]
[345468360,1734276637900,-8086.96233242,0.000264,2]
[345468361,1734276637912,-4641.33147307,0.000264,2]
[345468362,1734276637922,-264.23753707,0.00026473,2]
[345468363,1734276637931,-312.60412544,0.00026473,2]
[345468364,1734276637943,-187.39587456,0.00026473,2]
[345468365,1734276637952,-500.64810599,0.00026473,2]
[345468366,1734276637961,-500.38508793,0.00026473,2]
[345468367,1734276637971,-500.0,0.00026499,2]
[345468368,1734276637980,-500.0,0.00026499,2]
[345468369,1734276637990,-500.0,0.00026499,2]
[345468370,1734276638104,-500.0,0.00026499,2]
[345468371,1734276638117,-500.0,0.00026499,2]
[345468372,1734276638127,-500.0,0.00026499,2]
[345468373,1734276638139,-500.0,0.00026499,2]
[345468374,1734276638152,-240.05531174,0.00026499,2]
[345468375,1734276638161,-500.0,0.00026499,2]
[345468376,1734276638171,-500.0,0.00026499,2]
[345468377,1734276638180,-500.0,0.00026499,2]
[345468378,1734276638190,-500.0,0.00026499,2]
[345468379,1734276638200,-500.0,0.00026499,2]
[345468380,1734276638209,-500.0,0.00026499,2]
[345468381,1734276638218,-500.0,0.00026499,2]
[345468382,1734276638227,-500.0,0.00026499,2]
[345468383,1734276638237,-500.0,0.00026499,2]
[345468384,1734276638246,-500.0,0.00026499,2]
[345468385,1734276638255,-500.0,0.00026499,2]
[345468386,1734276638264,-500.0,0.00026499,2]
[345468387,1734276638274,-500.0,0.00026499,2]
[345468388,1734276638283,-500.0,0.00026499,2]
[345468389,1734276638292,-308.38635393,0.00026499,2]
[345468390,1734276638301,-421.79979907,0.00026499,2]
[345468391,1734276638311,-500.0,0.00026499,2]
[345468392,1734276638321,-500.0,0.00026499,2]
[345468393,1734276638331,-500.0,0.00026499,2]
[345468394,1734276638340,-500.0,0.00026499,2]
[345468395,1734276638349,-500.0,0.00026499,2]
[345468396,1734276638358,-500.0,0.00026499,2]
[345468397,1734276638368,-245.21506946,0.00026499,2]
[345468398,1734276638377,-500.0,0.00026499,2]
[345468399,1734276638386,-500.0,0.00026499,2]
[345468400,1734276638395,-500.0,0.00026499,2]
[345468401,1734276638405,-500.0,0.00026499,2]
[345468402,1734276638414,-290.3778538,0.00026499,2]
[345468403,1734276638424,-500.0,0.00026499,2]
[345468404,1734276638433,-506.60268182,0.00026499,2]
[345468405,1734276638444,-500.0,0.00026499,2]
[345468406,1734276638453,-500.0,0.00026499,2]
[345468407,1734276638463,-314.40379603,0.00026499,2]
[345468408,1734276638472,-500.0,0.00026499,2]
[345468409,1734276638482,-500.0,0.00026499,2]
[345468410,1734276638493,-500.0,0.00026499,2]
[345468411,1734276638503,-500.0,0.00026499,2]
[345468412,1734276638512,-500.0,0.00026499,2]
[345468413,1734276638522,-500.0,0.00026499,2]
[345468414,1734276638532,-500.0,0.00026499,2]
[345468415,1734276638541,-500.0,0.00026499,2]
[345468416,1734276638551,-500.0,0.00026499,2]
[345468417,1734276638560,-500.0,0.00026499,2]
[345468418,1734276638569,-500.0,0.00026499,2]
[345468419,1734276638579,-500.0,0.00026499,2]
[345468420,1734276638589,-500.0,0.00026499,2]
[345468421,1734276638599,-500.0,0.00026499,2]
[345468422,1734276638608,-500.0,0.00026499,2]
[345468423,1734276638617,-500.0,0.00026499,2]
[345468424,1734276638627,-500.0,0.00026499,2]
[345468425,1734276638636,-500.0,0.00026499,2]
[345468426,1734276638645,-500.0,0.00026499,2]
[345468427,1734276638655,-500.0,0.00026499,2]
[345468428,1734276638664,-500.0,0.00026499,2]
[345468429,1734276638673,-500.0,0.00026499,2]
[345468430,1734276638682,-500.0,0.00026499,2]
[345468431,1734276638691,-500.0,0.00026499,2]
[345468432,1734276638700,-500.0,0.00026499,2]
[345468433,1734276638710,-500.0,0.00026499,2]
[345468434,1734276638719,-500.0,0.00026499,2]
[345468435,1734276638728,-500.0,0.00026499,2]
[345468436,1734276638739,-500.0,0.00026499,2]
[345468437,1734276638748,-500.0,0.00026499,2]
[345468438,1734276638757,-500.0,0.00026499,2]
[345468439,1734276638767,-500.0,0.00026499,2]
[345468440,1734276638776,-500.0,0.00026499,2]
[345468441,1734276638785,-500.0,0.00026499,2]
[345468442,1734276638795,-500.0,0.00026499,2]
[345468443,1734276638804,-500.0,0.00026499,2]
[345468444,1734276638813,-500.0,0.00026499,2]
[345468445,1734276638822,-500.0,0.00026499,2]
[345468446,1734276638831,-500.0,0.00026499,2]
[345468447,1734276638840,-500.0,0.00026499,2]
[345468448,1734276638849,-500.0,0.00026499,2]
[345468449,1734276638860,-500.0,0.00026499,2]
[345468450,1734276638871,-500.0,0.00026499,2]
[345468451,1734276638881,-500.0,0.00026499,2]
[345468452,1734276638890,-500.0,0.00026499,2]
[345468453,1734276638900,-500.0,0.00026499,2]
[345468454,1734276638910,-500.0,0.00026499,2]
[345468455,1734276638919,-500.0,0.00026499,2]
[345468456,1734276638929,-350.0,0.00026499,2]
[345468457,1734276638938,-160.0,0.00026499,2]
[345468458,1734276638948,-500.0,0.00026499,2]
[345468459,1734276638958,-500.0,0.00026499,2]
[345468460,1734276638968,-500.0,0.00026499,2]
[345468461,1734276638977,-500.0,0.00026499,2]
[345468462,1734276638986,-500.0,0.00026499,2]
[345468463,1734276638996,-500.0,0.00026499,2]
[345468464,1734276639009,-435.11970456,0.00026499,2]
[345468465,1734276639019,-500.0,0.00026499,2]
[345468466,1734276639028,-623689.02749328,0.000265,2]
[345468467,1734276639038,-13519.72,0.000265,2]
[345468468,1734276639048,-1403.99225304,0.000265,2]
[345468469,1734276639060,-152.0,0.0002659,2]
[345468470,1734276639069,-207.70253559,0.000269,2]
[345468471,1734276639079,-1000.0,0.00027,27]
[345468472,1734276639089,-1000.0,0.00027021,2]
[345468473,1734276639100,-193.0,0.00027188,2]
[345468474,1734276639110,-207.70253551,0.00027238,2]
[345468475,1734276639120,-2206.81373537,0.00027568,2]
[345468476,1734276639130,-207.70253551,0.00027576,2]
[345468477,1734276639140,-26656.6427271,0.000278,6]
[345468478,1734276639151,-246.0,0.000278,2]
[345468479,1734276639161,-207.70253551,0.00027914,2]
[345468480,1734276639170,-1000.0,0.00028,28]
[345468481,1734276639180,-450.0,0.00028,2]
[345468482,1734276639191,-500.0,0.00028022,5]
[345468483,1734276639202,-153.0,0.00028069,2]
[345468484,1734276639213,-420.0,0.00028137,2]
[345468485,1734276639223,-162.6,0.000282,2]
[345468486,1734276639232,-207.70253551,0.00028252,2]
[345468487,1734276639241,-811.5,0.00028344,15]
[345468488,1734276639251,-153.35,0.000284,31]
[345468489,1734276639261,-153.35,0.000284,31]
[345468490,1734276639271,-278.0,0.00028426,2]
[345468491,1734276639281,-333.29565108,0.0002849,7]
[345468492,1734276639291,-603.44,0.0002849,2]
[345468494,1734276639300,-156.67,0.0002849,7]
[345468496,1734276639310,-521.27837892,0.0002849,7]
[345468498,1734276639319,-500.0,0.0002849,7]
[345468500,1734276639329,-428.71889085,0.0002849,7]
[345468502,1734276639339,-960.63,0.000285,2]
[345468503,1734276639349,-421.107,0.0002854,2]
[345468504,1734276639359,-150.492,0.00028562,2]
[345468505,1734276639369,-1957.993,0.00028562,2]
[345468506,1734276639379,-207.70253551,0.00028589,2]
[345468507,1734276639389,-500.0,0.00028763,7]
[345468508,1734276639401,-500.0,0.00028763,7]
[345468509,1734276639411,-500.0,0.00028763,7]
[345468510,1734276639421,-500.0,0.00028763,7]
[345468511,1734276639431,-5319.71,0.00028763,2]
[345468512,1734276639441,-941.09,0.00028763,7]
[345468513,1734276639451,-603.44,0.00028764,2]
[345468514,1734276639460,-500.0,0.00028764,7]
[345468515,1734276639469,-500.0,0.00028764,7]
[345468516,1734276639479,-153.35,0.000288,31]
[345468517,1734276639488,-153.35,0.000288,31]
[345468518,1734276639498,-153.35,0.000288,31]
[345468519,1734276639508,-153.35,0.000288,31]
[345468520,1734276639518,-600.0,0.00028859,2]
[345468521,1734276639529,-295.634,0.00028916,2]
[345468522,1734276639539,-290.294,0.00028916,2]
[345468523,1734276639548,-207.70253551,0.00028927,2]
[345468524,1734276639558,-1000.0,0.00029,29]
[345468525,1734276639568,-303.1212394,0.00029,2]
[345468527,1734276639578,-500.0,0.00029037,7]
[345468528,1734276639587,-500.0,0.00029037,7]
[345468531,1734276639597,-500.0,0.00029037,7]
[345468533,1734276639607,-500.0,0.00029037,7]
[345468535,1734276639617,-5319.71,0.00029037,2]
[345468537,1734276639627,-941.09,0.00029037,7]
[345468538,1734276639636,-603.44,0.00029038,2]
[345468541,1734276639646,-500.0,0.00029038,7]
[345468542,1734276639659,-500.0,0.00029038,7]
[345468544,1734276639671,-692.66811647,0.00029159,2]
[345468546,1734276639680,-300.0,0.000292,2]
[345468547,1734276639690,-153.35,0.000292,31]
[345468549,1734276639699,-153.35,0.000292,31]
[345468551,1734276639709,-153.35,0.000292,31]
[345468553,1734276639718,-153.35,0.000292,31]
[345468555,1734276639727,-207.70253551,0.00029265,2]
[345468556,1734276639736,-303.1212394,0.0002929,2]
[345468558,1734276639746,-458.18024975,0.00029311,7]
[345468560,1734276639755,-500.0,0.00029311,7]
[345468562,1734276639764,-500.0,0.00029311,7]
[345468564,1734276639775,-500.0,0.00029311,7]
[345468566,1734276639784,-5319.71,0.00029311,2]
[345468568,1734276639793,-941.09,0.00029311,7]
[345468570,1734276639803,-603.44,0.00029312,2]
[345468572,1734276639812,-500.0,0.00029312,7]
[345468574,1734276639823,-500.0,0.00029312,7]
[345468576,1734276639832,-303.14246574,0.0002938,2]
[345468577,1734276639842,-303.1212394,0.0002958,2]
[345468578,1734276639851,-500.0,0.00029585,7]
[345468579,1734276639862,-500.0,0.00029585,7]
[345468580,1734276639872,-500.0,0.00029585,7]
[345468582,1734276639882,-5319.71,0.00029585,2]
[345468584,1734276639891,-941.09,0.00029585,7]
[345468586,1734276639905,-603.44,0.00029586,2]
[345468588,1734276639914,-500.0,0.00029586,7]
[345468590,1734276639924,-500.0,0.00029586,7]
[345468592,1734276639933,-207.70253551,0.00029603,2]
[345468594,1734276639943,-500.0,0.00029699,2]
[345468595,1734276639953,-204.73157813,0.00029699,2]
[345468596,1734276639962,-233.46810911,0.00029699,2]
[345468597,1734276639972,-209.55600157,0.00029699,2]
[345468598,1734276639981,-153.35,0.000297,31]
[345468599,1734276639991,-153.35,0.000297,31]
[345468600,1734276640001,-153.35,0.000297,31]
[345468601,1734276640015,-153.35,0.000297,31]
[345468602,1734276640025,-13519.72,0.000297,2]
[345468603,1734276640036,-10297.95885299,0.00029738,2]
[345468604,1734276640046,-220.0421819,0.0002974,4]
[345468605,1734276640057,-500.0,0.00029859,7]
[345468606,1734276640068,-500.0,0.00029859,7]
[345468607,1734276640078,-500.0,0.00029859,7]
[345468608,1734276640088,-5319.71,0.00029859,2]
[345468609,1734276640098,-941.09,0.00029859,7]
[345468610,1734276640107,-603.44,0.0002986,2]
[345468611,1734276640116,-500.0,0.0002986,7]
[345468612,1734276640126,-500.0,0.0002986,7]
[345468613,1734276640136,-303.1212394,0.0002987,2]
[345468615,1734276640145,-500.0,0.00029936,7]
[345468617,1734276640158,-153.18108165,0.00029941,21]
[345468618,1734276640170,-666.0,0.00029941,2]
[345468619,1734276640179,-207.70253551,0.00029941,2]
[345468620,1734276640188,-2000.0,0.0003,2]
[345468621,1734276640199,-1000.0,0.0003,120]
[345468622,1734276640208,-999.79380542,0.0003,30]
[345468623,1734276640218,-246.0,0.0003,2]
[345468624,1734276640228,-500.0,0.00030036,2]
[345468625,1734276640237,-500.0,0.00030036,2]
[345468626,1734276640246,-500.0,0.00030036,2]
[345468627,1734276640256,-500.0,0.00030036,2]
[345468628,1734276640265,-500.0,0.00030036,2]
[345468629,1734276640275,-500.0,0.00030036,2]
[345468630,1734276640285,-500.0,0.00030036,2]
[345468631,1734276640294,-500.0,0.00030036,2]
[345468632,1734276640303,-500.0,0.00030036,2]
[345468633,1734276640313,-500.0,0.00030036,2]
[345468634,1734276640324,-500.0,0.00030036,2]
[345468635,1734276640333,-500.0,0.00030036,2]
[345468636,1734276640343,-354.53719851,0.00030036,2]
[345468637,1734276640352,-606.04514898,0.00030037,2]
[345468638,1734276640362,-4466.06754813,0.00030039,2]
[345468639,1734276640372,-70504.98961243,0.00030039,2]
[345468640,1734276640381,-810809.00591408,0.00030041,10]
[345468641,1734276640436,-1128.73303,0.00030041,10]
[345468642,1734276640447,-677.41019514,0.00030041,10]
[345468643,1734276640463,-592.75113173,0.00030041,10]
[345468675,1734276643034,-329.220002,0.00026473,2]
[345468773,1734276645835,-36.88528681,0.00026473,2]
[345468775,1734276645845,-310.26679602,0.00026473,2]
[345468777,1734276645855,-20945.61997022,0.00029941,3]
[345468793,1734276842926,1000.0,0.00022,22]
[345468795,1734277063609,2076.87,0.00020222,2]
[345468800,1734277484147,166.031976,0.00013973,2]
[345468802,1734277746127,2583.66331648,0.000255,120]
[345468872,1734277832291,-2206.81373537,0.00021789,2]
[345468874,1734277832300,-300.0,0.00021889,2]
[345468876,1734277832310,-24078.0,0.0002189,2]
[345468878,1734277832320,-164.0,0.00022,2]
[345468879,1734277832329,-164.0,0.00022192,2]
[345468881,1734277832339,-1000.0,0.00023,23]
[345468883,1734277832349,-164.0,0.00023014,2]
[345468885,1734277832358,-207.03573,0.0002378,2]
[345468887,1734277832367,-1047.63897694,0.00023832,2]
[345468889,1734277832377,-152.0,0.00023862,2]
[345468891,1734277832386,-1403.99225304,0.00023932,2]
[345468893,1734277832395,-231.631074,0.00023932,2]
[345468895,1734277832405,-12732.0703793,0.00023932,2]
[345468896,1734277832415,-1000.0,0.00024,24]
[345468898,1734277832424,-165.0,0.00024164,2]
[345468900,1734277832433,-193.0,0.00024399,2]
[345468902,1734277832444,-1047.63897694,0.00024706,2]
[345468904,1734277832453,-246.0,0.00024948,2]
[345468906,1734277832462,-1000.0,0.00025,25]
[345468908,1734277832471,-278.0,0.0002551,2]
[345468910,1734277832480,-207.03573,0.0002554,2]
[345468912,1734277832490,-188.9265005,0.00025548,2]
[345468913,1734277832500,-1047.63897694,0.0002558,2]
[345468915,1734277832509,-164.0,0.00025775,2]
[345468917,1734277832529,-1000.0,0.00026,26]
[345468919,1734277832538,-1047.63897694,0.00026454,2]
[345468921,1734277832547,-500.0,0.00027,30]
[345468923,1734277832556,-500.0,0.00027,30]
[345468924,1734277832566,-500.0,0.00027,30]
[345468926,1734277832576,-500.0,0.00027,30]
[345468928,1734277832585,-500.0,0.00027,30]
[345468930,1734277832597,-500.0,0.00027,30]
[345468932,1734277832607,-500.0,0.00027,30]
[345468934,1734277832616,-500.0,0.00027,30]
[345468936,1734277832626,-800.0,0.00027,30]
[345468938,1734277832635,-500.0,0.00027,30]
[345468940,1734277832645,-500.0,0.00027,30]
[345468942,1734277832654,-500.0,0.00027,30]
[345468944,1734277832663,-500.0,0.00027,30]
[345468946,1734277832673,-500.0,0.00027,30]
[345468947,1734277832682,-500.0,0.00027,30]
[345468949,1734277832692,-500.0,0.00027,30]
[345468951,1734277832701,-500.0,0.00027,30]
[345468953,1734277832710,-500.0,0.00027,30]
[345468955,1734277832719,-500.0,0.00027,30]
[345468957,1734277832729,-742.51894784,0.00027,30]
[345468959,1734277832740,-1000.0,0.00027,27]
[345468961,1734277832749,-207.03573,0.000273,2]
[345468963,1734277832758,-1047.63897694,0.00027327,2]
[345468965,1734277832768,-164.0,0.00027386,2]
[345468967,1734277832777,-500.0,0.00027386,2]
[345468969,1734277832786,-500.0,0.00027397,7]
[345468971,1734277832795,-342.65048772,0.00027397,7]
[345468972,1734277832804,-500.0,0.00027397,7]
[345468974,1734277832814,-941.09,0.00027397,7]
[345468976,1734277832823,-156.67,0.00027397,7]
[345468978,1734277832832,-500.0,0.00027397,7]
[345468980,1734277832842,-500.0,0.00027397,7]
[345468982,1734277832851,-500.0,0.00027397,7]
[345468984,1734277832860,-500.0,0.00027397,7]
[345468986,1734277832869,-333.29565108,0.00027397,7]
[345468988,1734277832878,-500.0,0.00027397,7]
[345468990,1734277832888,-500.0,0.00027397,7]
[345468991,1734277832897,-500.0,0.00027397,7]
[345468993,1734277832906,-500.0,0.00027397,7]
[345468995,1734277832915,-5319.71,0.00027397,2]
[345468997,1734277832925,-500.0,0.00027424,7]
[345468999,1734277832934,-500.0,0.00027424,7]
[345469001,1734277832943,-500.0,0.00027424,7]
[345469003,1734277832953,-500.0,0.00027424,7]
[345469005,1734277832965,-228.44,0.00027424,7]
[345469007,1734277832974,-501.01069699,0.00027576,5]
[345469009,1734277832984,-164.0,0.00027616,2]
[345469011,1734277832994,-166.031976,0.00027641,2]
[345469013,1734277833003,-500.0,0.0002766,2]
[345469015,1734277833012,-500.0,0.00027671,7]
[345469017,1734277833021,-500.0,0.00027671,7]
[345469018,1734277833031,-941.09,0.00027671,7]
[345469020,1734277833040,-500.0,0.00027671,7]
[345469022,1734277833049,-500.0,0.00027671,7]
[345469024,1734277833058,-500.0,0.00027671,7]
[345469026,1734277833068,-500.0,0.00027671,7]
[345469028,1734277833078,-500.0,0.00027671,7]
[345469030,1734277833087,-500.0,0.00027671,7]
[345469032,1734277833096,-500.0,0.00027671,7]
[345469034,1734277833105,-500.0,0.00027671,7]
[345469035,1734277833114,-5319.71,0.00027671,2]
[345469037,1734277833124,-500.98487787,0.00027718,5]
[345469039,1734277833134,-498.73878151,0.00027718,5]
[345469041,1734277833143,-500.0,0.00027718,5]
[345469043,1734277833152,-500.0,0.00027934,2]
[345469045,1734277833161,-500.0,0.00027944,2]
[345469047,1734277833171,-500.0,0.00027944,2]
[345469049,1734277833180,-500.0,0.00027944,2]
[345469051,1734277833189,-500.0,0.00027944,2]
[345469052,1734277833198,-500.0,0.00027944,2]
[345469054,1734277833208,-500.0,0.00027944,2]
[345469056,1734277833217,-500.0,0.00027944,2]
[345469058,1734277833227,-500.0,0.00027944,2]
[345469060,1734277833237,-500.0,0.00027944,2]
[345469062,1734277833246,-500.0,0.00027944,2]
[345469064,1734277833255,-500.0,0.00027944,2]
[345469066,1734277833264,-500.0,0.00027944,2]
[345469067,1734277833273,-354.53719851,0.00027944,2]
[345469069,1734277833283,-500.0,0.00027945,7]
[345469071,1734277833292,-500.0,0.00027945,7]
[345469073,1734277833301,-941.09,0.00027945,7]
[345469075,1734277833311,-369.42769476,0.00027945,7]
[345469077,1734277833324,-500.0,0.00027945,7]
[345469079,1734277833333,-500.0,0.00027945,7]
[345469081,1734277833343,-500.0,0.00027945,7]
[345469082,1734277833352,-500.0,0.00027945,7]
[345469084,1734277833362,-500.0,0.00027945,7]
[345469086,1734277833371,-500.0,0.00027945,7]
[345469088,1734277833380,-500.0,0.00027945,7]
[345469090,1734277833390,-5319.71,0.00027945,2]
[345469092,1734277833399,-1000.0,0.00028,28]
[345469094,1734277833408,-153.0,0.0002812,2]
[345469096,1734277833418,-162.6,0.000282,2]
[345469097,1734277833427,-1047.63897694,0.00028201,2]
[345469099,1734277833437,-500.0,0.00028208,2]
[345469101,1734277833447,-500.0,0.00028219,7]
[345469103,1734277833456,-500.0,0.00028219,7]
[345469105,1734277833465,-941.09,0.00028219,7]
[345469106,1734277833478,-500.0,0.00028219,7]
[345469107,1734277833487,-500.0,0.00028219,7]
[345469108,1734277833496,-500.0,0.00028219,7]
[345469109,1734277833506,-500.0,0.00028219,7]
[345469110,1734277833517,-500.0,0.00028219,7]
[345469111,1734277833527,-500.0,0.00028219,7]
[345469112,1734277833536,-500.0,0.00028219,7]
[345469113,1734277833546,-5319.71,0.00028219,2]
[345469114,1734277833555,-1000.0,0.00028266,5]
[345469115,1734277833567,-811.5,0.00028344,15]
[345469116,1734277833576,-153.35,0.000284,31]
[345469117,1734277833585,-153.35,0.000284,31]
[345469118,1734277833595,-500.0,0.00028482,2]
[345469119,1734277833605,-500.0,0.00028493,7]
[345469120,1734277833614,-500.0,0.00028493,7]
[345469121,1734277833624,-941.09,0.00028493,7]
[345469122,1734277833633,-500.0,0.00028493,7]
[345469123,1734277833642,-500.0,0.00028493,7]
[345469124,1734277833652,-500.0,0.00028493,7]
[345469125,1734277833661,-500.0,0.00028493,7]
[345469126,1734277833670,-500.0,0.00028493,7]
[345469127,1734277833679,-500.0,0.00028493,7]
[345469128,1734277833688,-500.0,0.00028493,7]
[345469130,1734277833698,-5319.71,0.00028493,2]
[345469132,1734277833708,-960.63,0.000285,2]
[345469134,1734277833717,-500.0,0.000285,30]
[345469136,1734277833727,-500.0,0.000285,30]
[345469138,1734277833736,-500.0,0.000285,30]